[Event "1er Tournoi de GM du Barreau de Paris"]
[Site "Paris, France"]
[Date "2019.12.20"]
[Round "9.5"]
[White "SOCHACKI, Wojtek"]
[Black "MAURIZZI, Marc Andria"]
[Result "0-1"]
[TimeControl "1h30 + 30s/cp"]
[WhiteTitle "IM"]
[BlackTitle "IM"]
[WhiteElo "2320"]
[BlackElo "2404"]

1. Nf3 {[%clk 01:30:56]} {[%emt 00:00:03]} Nf6 {[%clk 01:30:52]} {[%emt
00:00:08]} 2. g3 {[%clk 01:31:22]} {[%emt 00:00:04]} b6 {[%clk 01:31:18]}
{[%emt 00:00:04]} 3. Bg2 {[%clk 01:31:40]} {[%emt 00:00:12]} Bb7 {[%clk
01:31:48]} {[%emt 00:00:01]} 4. O-O {[%clk 01:31:44]} {[%emt 00:00:24]} g6
{[%clk 01:32:14]} {[%emt 00:00:06]} 5. d3 {[%clk 01:26:35]} {[%emt 00:05:39]}
d6 {[%clk 01:32:21]} {[%emt 00:00:22]} 6. e4 {[%clk 01:26:32]} {[%emt
00:00:33]} c5 {[%clk 01:32:45]} {[%emt 00:00:07]} 7. Nc3 {[%clk 01:19:30]}
{[%emt 00:07:32]} Bg7 {[%clk 01:32:10]} {[%emt 00:01:05]} 8. d4 {[%clk
01:19:25]} {[%emt 00:00:36]} Nxe4 {[%clk 01:18:59]} {[%emt 00:13:40]} 9. Nxe4
{[%clk 01:19:40]} {[%emt 00:00:15]} Bxe4 {[%clk 01:19:28]} {[%emt 00:00:02]} 10.
d5 {[%clk 01:19:56]} {[%emt 00:00:14]} O-O {[%clk 01:18:45]} {[%emt 00:01:12]}
11. Re1 {[%clk 01:20:21]} {[%emt 00:00:05]} Bxf3 {[%clk 01:19:01]} {[%emt
00:00:14]} 12. Qxf3 {[%clk 01:20:37]} {[%emt 00:00:13]} Nd7 {[%clk 01:19:01]}
{[%emt 00:00:30]} 13. a4 {[%clk 01:19:30]} {[%emt 00:01:37]} Bf6 {[%clk
01:15:07]} {[%emt 00:04:23]} 14. Ra3 {[%clk 01:18:09]} {[%emt 00:01:52]} a6
{[%clk 01:11:50]} {[%emt 00:03:47]} 15. Bf1 {[%clk 01:18:27]} {[%emt 00:00:12]}
Ne5 {[%clk 01:08:01]} {[%emt 00:04:19]} 16. Qe4 {[%clk 01:15:49]} {[%emt
00:03:07]} Qc7 {[%clk 01:07:31]} {[%emt 00:01:01]} 17. f4 {[%clk 01:14:23]}
{[%emt 00:01:55]} Nd7 {[%clk 01:07:52]} {[%emt 00:00:08]} 18. g4 {[%clk
01:12:49]} {[%emt 00:02:06]} Rfe8 {[%clk 01:01:05]} {[%emt 00:07:17]} 19. Kh1
{[%clk 00:50:17]} {[%emt 00:22:59]} e6 {[%clk 00:47:14]} {[%emt 00:14:23]} 20.
dxe6 {[%clk 00:49:28]} {[%emt 00:01:19]} fxe6 {[%clk 00:47:15]} {[%emt
00:00:29]} 21. c4 {[%clk 00:48:13]} {[%emt 00:01:44]} Bd4 {[%clk 00:40:57]}
{[%emt 00:06:48]} 22. Bg2 {[%clk 00:45:30]} {[%emt 00:03:13]} d5 {[%clk
00:34:16]} {[%emt 00:07:12]} 23. Qe2 {[%clk 00:45:08]} {[%emt 00:00:51]} Nf6
{[%clk 00:34:09]} {[%emt 00:00:38]} 24. Be3 {[%clk 00:24:29]} {[%emt 00:21:09]}
Rad8 {[%clk 00:28:33]} {[%emt 00:06:05]} 25. Bxd4 {[%clk 00:16:11]} {[%emt
00:08:50]} cxd4 {[%clk 00:28:57]} {[%emt 00:00:05]} 26. cxd5 {[%clk 00:16:15]}
{[%emt 00:00:26]} exd5 {[%clk 00:27:15]} {[%emt 00:02:13]} 27. Qf1 {[%clk
00:16:38]} {[%emt 00:00:07]} Rxe1 {[%clk 00:24:48]} {[%emt 00:02:56]} 28. Qxe1
{[%clk 00:17:05]} {[%emt 00:00:04]} Re8 {[%clk 00:24:33]} {[%emt 00:00:45]} 29.
Qd2 {[%clk 00:17:25]} {[%emt 00:00:09]} Ne4 {[%clk 00:24:38]} {[%emt 00:00:25]}
30. Bxe4 {[%clk 00:17:31]} {[%emt 00:00:24]} Rxe4 {[%clk 00:24:55]} {[%emt
00:00:13]} 31. Rf3 {[%clk 00:17:51]} {[%emt 00:00:09]} Qe7 {[%clk 00:23:00]}
{[%emt 00:02:25]} 32. Kg1 {[%clk 00:17:46]} {[%emt 00:00:36]} Qe6 {[%clk
00:17:48]} {[%emt 00:05:42]} 33. h3 {[%clk 00:15:22]} {[%emt 00:02:53]} Re3
{[%clk 00:17:12]} {[%emt 00:01:07]} 34. Kf2 {[%clk 00:15:22]} {[%emt 00:00:30]}
Qe4 {[%clk 00:15:30]} {[%emt 00:02:11]} 35. Qd1 {[%clk 00:14:28]} {[%emt
00:01:24]} Kf7 {[%clk 00:14:37]} {[%emt 00:01:22]} 36. Qh1 {[%clk 00:14:52]}
{[%emt 00:00:07]} Re2+ {[%clk 00:15:00]} {[%emt 00:00:07]} 37. Kg3 {[%clk
00:15:17]} {[%emt 00:00:05]} Re3 {[%clk 00:15:02]} {[%emt 00:00:29]} 38. Qf1
{[%clk 00:15:09]} {[%emt 00:00:38]} d3 {[%clk 00:14:06]} {[%emt 00:01:26]} 39.
Rxe3 {[%clk 00:15:25]} {[%emt 00:00:15]} Qxe3+ {[%clk 00:14:30]} {[%emt
00:00:05]} 40. Kh4 {[%clk 00:15:50]} {[%emt 00:00:06]} d2 {[%clk 00:14:29]}
{[%emt 00:00:31]} 0-1